[Event "HSK GM Invitational 2022"]
[Site "Hamburg"]
[Date "2022.05.26"]
[Round "8.3"]
[White "Trent, Lawrence"]
[Black "Carlstedt, Jonathan"]
[Result "1-0"]
[ECO "B23"]
[WhiteElo "2398"]
[BlackElo "2444"]
[Annotator "TA"]
[PlyCount "107"]
[EventDate "2022.05.20"]
[EventType "tourn"]
[EventCountry "GER"]
[SourceTitle "playchess.com"]
[Source "ChessBase"]
[SourceQuality "1"]
[TimeControl "40/5400+30:1800+30"]

{[%evp 9,106,14,14,3,4,10,13,-33,-27,-37,-12,-24,-19,-43,-41,-40,-35,-44,-30,-27,-30,-30,-27,-30,-31,-27,0,-11,0,0,0,-22,-22,-16,-17,-18,0,-40,0,0,-6,0,0,0,14,0,55,47,56,47,46,27,84,48,351,320,368,0,0,0,0,0,0,0,0,0,0,0,0,0,0,-6,-5,-6,-5,-5,-14,-492,-6,-35,0,-481,-325,-450,-112,-119,-119,-129,0,-14,0,0,0,0,0,0,29997,29998,29999]} 1. e4 {[%emt 0:00:11]} c5 {[%emt 0:00:13]} 2. Nc3 {[%emt 0:02:15]} Nc6 {[%emt 0:00:17]} 3. Bb5 {[%emt 0:00:34]} Nd4 {[%emt 0:01:16]} 4. Nf3 {[%emt 0:00:05]} a6 {[%emt 0:00:24]} 5. Bd3 {[%emt 0:00:02]} g6 {[%emt 0:00:07]} 6. O-O {[%emt 0:15:35] B23: Closed Sicilian: Lines without g3.} Bg7 {[%emt 0:00:50]} 7. Re1 {[%emt 0:01:01]} Nh6 {[%emt 0:07:36] [#]} 8. e5 $146 {[%emt 0:08:57]} (8. Rb1 $11 {feels stronger.}) ({Predecessor:} 8. Rb1 d6 9. h3 Nc6 10. a3 b5 11. Nd5 e6 12. Ne3 O-O 13. c4 b4 14. axb4 Nxb4 {1-0 (58) Matinian,N (2454)-Fedoseev,V (2704) Chess.com INT 2022}) 8... O-O $15 {[%emt 0:03:10]} 9. h3 {[%emt 0:01:42]} d6 {[%emt 0:07:29]} 10. exd6 {[%emt 0:02:36]} Qxd6 {[%emt 0:00:13]} 11. Nxd4 {[%emt 0:06:13]} cxd4 {[%emt 0:00:35]} 12. Ne4 {[%emt 0:00:21]} Qc7 {[%emt 0:02:01]} 13. b3 {[%emt 0:05:13]} Rd8 {[%emt 0:09:34]} 14. a4 {[%emt 0:11:30]} Be6 {[%emt 0:06:06][%cal Bc8e6,Be6d5,Bd5c6][%mdl 32]} 15. Ba3 {[%emt 0:08:13]} Bd5 {[%emt 0:00:35]} 16. Bc4 {[%emt 0:04:57]} Bc6 {[%emt 0:06:09]} 17. a5 {[%emt 0:03:18]} e5 {[%emt 0:13:12]} 18. Bb4 {[%emt 0:06:32]} Kh8 {[%emt 0:00:32]} 19. d3 {[%emt 0:00:51]} Nf5 {[%emt 0:03:36]} 20. Ng5 {[%emt 0:06:44]} Rd7 {[%emt 0:02:07]} 21. Qg4 {[%emt 0:03:26]} h6 {[%emt 0:03:55]} 22. Ne4 {[%emt 0:01:27]} Qd8 {[%emt 0:05:49]} 23. g3 {[%emt 0:01:43]} Kh7 {[%emt 0:01:57]} 24. h4 {[%emt 0:00:29]} h5 {[%emt 0:03:28]} 25. Ng5+ {[%emt 0:00:50]} Kh8 {[%emt 0:07:07]} 26. Qh3 {[%emt 0:00:31]} Nh6 {[%emt 0:00:50]} 27. Re2 {[%emt 0:00:36]} Qf6 {[%emt 0:03:21]} (27... Rc7 $11) 28. Rae1 $14 {[%emt 0:02:35]} Ng4 {[%emt 0:00:13]} 29. Bd2 {[%emt 0:03:37][%cal Of2f3]} Bf8 {[%emt 0:05:28]} 30. Rf1 {[%emt 0:02:15]} (30. f3 $5 {[%cal Rf3g4]} Ne3 31. Bxe3 dxe3 32. Rf1 $14) 30... Bc5 {[%emt 0:02:00]} (30... Bf3 $11 31. Ree1 Bd6) 31. f4 {[%emt 0:00:35] Threatens to win with fxe5.} Re8 {[%emt 0:04:22][%mdl 8192]} (31... e4 $1 $14) 32. fxe5 $18 {[%emt 0:00:33]} Rxe5 {[%emt 0:00:04]} 33. Rxe5 {[%emt 0:00:54] Dancing on a razor blade.} ({Only move:} 33. Rxf6 $18 Rxe2 34. Qf1 $1 (34. Rxf7 Rxd2 35. Qf1 Rxf7 $14) 34... Rxd2 35. Bxf7 (35. Nxf7+ Kg7 $11) 35... Rg2+ 36. Qxg2 Bxg2 37. Rxg6) 33... Qxe5 $11 {[%emt 0:00:31]} 34. Nxf7+ {[%emt 0:00:25]} Rxf7 {[%emt 0:00:01]} 35. Rxf7 {[%emt 0:00:12]} Qe2 {[%emt 0:00:15]} 36. Bg5 {[%emt 0:00:49]} Qe1+ {[%emt 0:01:27]} 37. Rf1 {[%emt 0:00:11]} Qe2 {[%emt 0:00:02]} 38. Rf7 {[%emt 0:00:32] Strongly threatening Bf6+.} (38. Bf7 Be7 39. Bf4 (39. Bxg6 $2 Bxg5 40. Be4 Be3+ 41. Kh1 Bxe4+ 42. dxe4 Qxc2 $19) 39... Kh7 $17) 38... Qe1+ {[%emt 0:00:05]} 39. Rf1 {[%emt 0:00:01]} Qe2 {[%emt 0:00:06]} 40. b4 {[%emt 0:01:16]} ({Reject} 40. Bf7 Be7 41. Bf4 (41. Bxg6 $2 Bxg5 42. Be4 Be3+ 43. Kh1 Bxe4+ 44. dxe4 Qxc2 $19) 41... Kh7 $15) 40... Be7 $40 {[%emt 0:02:31][%mdl 128] Black is up to no good.} 41. Bc1 {[%emt 0:16:26]} Bxb4 {[%emt 0:03:08]} (41... Qxc2 $5 42. Be6 Ne5 $11) 42. Bg5 {[%emt 0:00:27]} Be7 {[%emt 0:00:36] ( -> ...Bxg5)} 43. Bf4 {[%emt 0:02:27][%mdl 8192]} (43. Bc1 $1 $11 {and White is okay.}) 43... Bd6 $2 {[%emt 0:07:10]} 44. Bg5 {[%emt 0:00:30]} Be7 $2 {[%emt 0:07:17][%mdl 8192]} (44... Be5 $15) 45. Bf4 $19 {[%emt 0:00:02]} Kg7 {[%emt 0:00:34]} 46. Bb3 {[%emt 0:03:31] [#]} Bd8 $2 {[%emt 0:02:08]} (46... Kh7 $1 $19 {...Bb4 is the strong threat.} 47. Bc4 Bb4) 47. Bc1 $17 {[%emt 0:02:32] [#]} Ne5 $1 {[%emt 0:02:03][%mdl 1024] Inhibits Rf7+. Black has strong compensation.} 48. Bf4 {[%emt 0:02:16]} Ng4 {[%emt 0:04:52]} ({Black should play} 48... Nf3+ $17 49. Rxf3 Qxf3) 49. Bc1 $11 {[%emt 0:00:04]} g5 {[%emt 0:04:02]} 50. Rf7+ {[%emt 0:03:46]} (50. Bxg5 {is a self mate.} Bxg5 51. Rf7+ Kg6) 50... Kg6 {[%emt 0:00:29]} 51. Rf1 {[%emt 0:00:04] And now Bf7+ would win.} Bf3 {[%emt 0:02:23]} 52. hxg5 {[%emt 0:03:13]} Bxa5 $2 {[%emt 0:01:37][%mdl 8192] [#]} (52... Bxg5 $11 53. Bf7+ Kxf7 54. Bxg5 Kg7) 53. Qxh5+ $3 {[%emt 0:00:18][%mdl 512]} Kxh5 {[%emt 0:00:29]} (53... Kf5 54. Qh7+) 54. Bf7# {Never resign too early!  Weighted Error Value: White=0.35/Black=0.63} 1-0

[Event "HSK GM Invitational 2022"]
[Site "Hamburg"]
[Date "2022.05.26"]
[Round "8.4"]
[White "Colpe, Malte"]
[Black "Koellner, Ruben Gideon"]
[Result "1-0"]
[ECO "E01"]
[WhiteElo "2348"]
[BlackElo "2440"]
[Annotator "TA"]
[PlyCount "119"]
[EventDate "2022.05.20"]
[EventType "tourn"]
[EventCountry "GER"]
[SourceTitle "playchess.com"]
[Source "ChessBase"]
[SourceQuality "1"]
[TimeControl "40/5400+30:1800+30"]

{[%evp 9,119,9,20,-6,-4,-4,0,0,0,0,-6,-21,-20,-14,-6,-10,-8,-20,-8,-14,-34,-16,-16,-16,-1,-14,0,-1,0,0,0,0,0,-10,0,0,1,3,0,4,49,32,26,7,10,12,72,74,81,79,172,175,187,187,198,133,221,220,221,215,204,206,237,235,269,265,304,296,347,308,437,435,418,421,581,564,548,403,548,541,526,501,1440,1266,2152,2068,1871,1690,1415,1150,12836,12836,12837,12837,12839,12839,12840,12841,12841,12842,12842,12843,12843,12843,12843,12842,12844,12844,12844,12843,12840,12839]} 1. d4 {[%emt 0:00:03]} d5 {[%emt 0:00:14]} 2. c4 {[%emt 0:00:06]} e6 {[%emt 0:00:02]} 3. Nc3 {[%emt 0:00:07]} Nf6 {[%emt 0:00:04]} 4. Nf3 {[%emt 0:00:08]} Be7 {[%emt 0:00:21]} 5. g3 {[%emt 0:00:07]} Nbd7 {[%emt 0:06:16]} 6. Qd3 {[%emt 0:03:15] E01: Catalan: Early deviations.} dxc4 {[%emt 0:01:20]} 7. Qxc4 {[%emt 0:00:06]} a6 {[%emt 0:00:03]} 8. Bf4 {[%emt 0:18:53] The position is equal.} c5 {[%emt 0:08:18]} 9. dxc5 {[%emt 0:00:18]} Bxc5 {[%emt 0:00:42]} 10. b4 {[%emt 0:04:03]} b5 {[%emt 0:03:08]} 11. Qb3 {[%emt 0:00:17]} Be7 {[%emt 0:00:26]} 12. Bg2 {[%emt 0:01:39] aiming for Nd4.} Bb7 {[%emt 0:00:48]} 13. O-O {[%emt 0:01:31] [#]} Rc8 $146 {[%emt 0:02:09]} ({Predecessor:} 13... O-O 14. Rac1 Rc8 15. a3 {½-½ (15) Krasenkow,M (2639)-Nyback,T (2639) Warsaw 2008}) 14. Rac1 {[%emt 0:08:49]} Rc4 {[%emt 0:04:12]} 15. a3 {[%emt 0:03:14]} Qa8 {[%emt 0:00:15]} (15... O-O {feels hotter.} 16. Nd2 Bxg2 17. Kxg2 Qa8+) 16. Nb1 {[%emt 0:04:18]} Nb6 {[%emt 0:11:04]} 17. Nbd2 {[%emt 0:00:53]} Rxc1 {[%emt 0:00:44]} 18. Rxc1 {[%emt 0:00:30]} O-O {[%emt 0:00:30]} 19. Be3 {[%emt 0:00:30]} Bd5 {[%emt 0:05:28]} 20. Qb2 {[%emt 0:05:45]} Na4 {[%emt 0:03:43]} 21. Qc2 {[%emt 0:04:25]} Ne4 {[%emt 0:13:10]} 22. Nxe4 {[%emt 0:18:40]} Bxe4 {[%emt 0:00:06] [#]} 23. Ng5 $1 {[%emt 0:06:03][%cal Bf3g5,Bg5e4,Be4c5][%mdl 32]} Bxc2 {[%emt 0:00:35]} 24. Bxa8 {[%emt 0:00:04]} Bb3 {[%emt 0:03:43]} 25. Bb7 {[%emt 0:00:56]} Bf6 {[%emt 0:00:42]} 26. Ne4 {[%emt 0:03:16]} (26. Bxa6 Nc3 27. Kf1 Bc4 $15) 26... Bb2 {[%emt 0:00:29][%csl LRa3,LRc1]} 27. Rc7 $36 {[%emt 0:01:12][%mdl 2048] Black is under pressure.} Bd5 {[%emt 0:21:52]} (27... Bxa3 $11 {remains equal.} 28. Bxa6 Bc4) 28. Bxd5 $16 {[%emt 0:04:29] White is more active. Black is now going downhill.} exd5 {[%emt 0:00:05]} 29. Nc5 {[%emt 0:00:46]} Nc3 {[%emt 0:09:24]} (29... d4 $16 {was called for.} 30. Nxa4 Bxa3) 30. Nd3 $1 $18 {[%emt 0:02:43]} (30. Nxa6 d4 31. Bd2 Nxe2+ 32. Kf1 Nc3 $11) 30... Ba1 {[%emt 0:00:05]} (30... Nxe2+ $2 31. Kf1 $18) 31. Kf1 $1 {[%emt 0:00:33] Bd4 is the strong threat.} Na4 {[%emt 0:02:13]} 32. Rd7 {[%emt 0:01:34]} ({White should play} 32. Ra7 $1 $18) 32... Bb2 {[%emt 0:01:43]} (32... Ra8 $16 33. Nf4 (33. Rxd5 h6 $16) 33... d4 34. Bxd4 Bxd4) 33. Nxb2 {[%emt 0:02:19]} (33. Rxd5 $6 Bxa3 34. Rd7 Ra8 $16) 33... Nxb2 {[%emt 0:00:01][%mdl 4096] Endgame [#] KRB-KRN} 34. Ra7 {[%emt 0:01:55] Prevents Ra8.} ({Resist} 34. Rxd5 $6 Nc4 $16) 34... Nc4 {[%emt 0:01:02]} 35. Bc5 {[%emt 0:00:17]} ({Don't do} 35. Rxa6 f6 36. Bc5 Rc8) 35... Re8 {[%emt 0:01:36]} 36. Rxa6 {[%emt 0:00:11]} f6 {[%emt 0:00:17]} 37. e3 {[%emt 0:00:48]} h5 {[%emt 0:00:46]} 38. Ke2 {[%emt 0:01:30] Inhibits Nd2.} h4 {[%emt 0:00:43]} 39. gxh4 {[%emt 0:00:18]} Re5 {[%emt 0:00:52]} (39... Kf7 {is a better defense.} 40. a4 bxa4 41. Rxa4 Rh8 42. Ra7+ Kg6) 40. a4 {[%emt 0:00:57]} bxa4 {[%emt 0:00:07]} 41. Rxa4 {[%emt 0:03:13]} Re4 {[%emt 0:00:20]} 42. b5 {[%emt 0:02:53] Black must now prevent b6.} Re8 {[%emt 0:01:46]} 43. Rb4 {[%emt 0:02:34]} Rb8 {[%emt 0:00:12]} 44. e4 {[%emt 0:02:01] White is clearly winning.} Re8 {[%emt 0:01:11]} 45. b6 {[%emt 0:11:17] Hoping for b7.} Rxe4+ {[%emt 0:00:12]} (45... Na5 $142 46. b7 Nxb7) 46. Be3 {[%emt 0:00:49]} Nd6 {[%emt 0:03:22]} 47. Rxe4 {[%emt 0:00:57]} dxe4 {[%emt 0:00:06] KB-KN} 48. Bf4 {[%emt 0:02:22]} Nb7 {[%emt 0:28:03]} 49. Ke3 {[%emt 0:11:26]} Kf7 {[%emt 0:00:00]} 50. Kxe4 {[%emt 0:00:00]} Ke6 {[%emt 0:01:00]} 51. h5 {[%emt 0:01:00]} Na5 {[%emt 0:00:00]} 52. h6 {[%emt 0:00:00] Intending h7 and mate.} gxh6 {[%emt 0:00:00]} 53. Bxh6 {[%emt 0:00:00]} Nc4 {[%emt 0:00:00]} 54. Be3 {[%emt 0:00:00]} Nd6+ {[%emt 0:00:00]} 55. Kf4 {[%emt 0:00:00]} Kf7 {[%emt 0:00:00]} 56. Bc5 {[%emt 0:00:00]} Nb7 {[%emt 0:00:00]} 57. Bd4 {[%emt 0:00:00]} Nd6 {[%emt 0:00:00]} 58. h4 {[%emt 0:00:00]} Kg6 {[%emt 0:00:00]} 59. Bc5 {[%emt 0:00:00]} Nb7 {[%emt 0:04:30] [#]} 60. Be3 $1 {[%emt 0:00:00] Weighted Error Value: White=0.09 (flawless) /Black=0.28 (precise)} 1-0

[Event "HSK GM Invitational 2022"]
[Site "Hamburg"]
[Date "2022.05.26"]
[Round "8.5"]
[White "Svane, Frederik"]
[Black "Kotronias, Vasilios"]
[Result "1-0"]
[ECO "B31"]
[WhiteElo "2501"]
[BlackElo "2465"]
[Annotator "TA"]
[PlyCount "75"]
[EventDate "2022.05.20"]
[EventType "tourn"]
[EventCountry "GER"]
[SourceTitle "playchess.com"]
[Source "ChessBase"]
[SourceQuality "1"]
[TimeControl "40/5400+30:1800+30"]

{[%evp 13,75,23,39,18,18,9,11,0,0,0,0,0,0,7,0,8,60,61,78,41,76,15,107,104,110,101,131,83,117,104,125,124,175,176,214,184,580,298,291,306,443,449,449,436,433,423,324,116,140,17,22,19,25,0,404,16,477,478,29988,29989,29990,29991,29991,29991]} 1. e4 {[%emt 0:00:03]} c5 {[%emt 0:04:12]} 2. Nf3 {[%emt 0:00:05]} Nc6 {[%emt 0:00:05]} 3. Bb5 {[%emt 0:00:13]} g6 {[%emt 0:00:10]} 4. Bxc6 {[%emt 0:00:14]} bxc6 {[%emt 0:00:05]} 5. O-O {[%emt 0:00:07]} Bg7 {[%emt 0:00:05]} 6. Re1 {[%emt 0:00:06]} Nh6 {[%emt 0:00:10]} 7. c3 {[%emt 0:00:07]} O-O {[%emt 0:00:36]} 8. h3 {[%emt 0:00:04] B31: Sicilian: 2...Nc6 3 Bb5 g6.} f5 {[%emt 0:01:20]} 9. e5 {[%emt 0:00:06]} Nf7 {[%emt 0:00:04]} 10. d4 {[%emt 0:00:09] The position is equal.} cxd4 {[%emt 0:00:15]} 11. cxd4 {[%emt 0:00:06]} c5 {[%emt 0:00:55]} 12. dxc5 {[%emt 0:00:55]} Bb7 {[%emt 0:00:06]} 13. Na3 {[%emt 0:00:05]} Rc8 {[%emt 0:04:16]} 14. Be3 {[%emt 0:00:07] [#]} e6 $146 {[%emt 0:01:42]} ({Black should play} 14... Bxf3 $11 15. Qxf3 Nxe5 16. Qd5+ Nf7) ({Predecessor:} 14... Bxf3 15. Qxf3 Nxe5 16. Qd5+ e6 17. Qd2 f4 18. Bd4 Rf5 19. Rad1 Nf3+ 20. gxf3 Qh4 21. Bxg7 Rcxc5 {½-½ (29) Wang,H (2702)-Gelfand,B (2729) Tbilisi 2017}) 15. Nc4 $14 {[%emt 0:18:43]} g5 {[%emt 0:12:19]} 16. Qd4 {[%emt 0:08:14] Inhibits g4.} h5 {[%emt 0:06:52]} 17. Rac1 {[%emt 0:32:34]} (17. Nd6 $16 Bxf3 18. Nxf7 (18. gxf3 Nxe5 19. Qd1 g4 $19) (18. Nxc8 $2 Qxc8 19. Bd2 Bd5 $19) 18... Rxf7 19. gxf3) 17... Rc7 {[%emt 0:13:02]} (17... Bd5 $11 {keeps the balance.}) 18. Nd6 $16 {[%emt 0:03:50]} g4 {[%emt 0:05:02]} 19. Nxf7 $1 {[%emt 0:01:41] White is much more active.} Kxf7 {[%emt 0:03:39]} 20. Ng5+ {[%emt 0:01:13]} ({Better is} 20. Bg5 Qe8 21. Nh4) 20... Kg6 {[%emt 0:01:37][%cal Of5f4]} 21. h4 {[%emt 0:03:52]} Bd5 {[%emt 0:01:35]} 22. b4 {[%emt 0:08:10][%cal Bb2b4,Bb4b5][%mdl 32]} Qa8 {[%emt 0:00:12]} (22... Bxa2 $16 23. Ra1 Bd5) 23. b5 $18 {[%emt 0:00:43]} Rfc8 {[%emt 0:00:07]} 24. Qf4 {[%emt 0:08:32]} Bf8 $2 {[%emt 0:15:05]} (24... Qb7 {is tougher.}) 25. c6 {[%emt 0:00:46]} Bh6 {[%emt 0:03:12][%cal Rd7c6]} 26. f3 {[%emt 0:00:55] Black must now prevent fxg4.} dxc6 {[%emt 0:08:12]} (26... Bxc6 $142 27. bxc6 Rxc6 28. Rxc6 Qxc6) 27. fxg4 {[%emt 0:00:17]} Rf8 {[%emt 0:07:29]} 28. gxh5+ {[%emt 0:05:33]} Kxh5 {[%emt 0:00:01]} 29. Red1 {[%emt 0:00:07][%cal Od1d5] Hoping for Rxd5!} c5 {[%emt 0:00:18]} 30. Bxc5 $2 {[%emt 0:01:11]} (30. Rxc5 $18 {and White stays clearly on top.} Rxc5 31. Bxc5) 30... Rfc8 $16 {[%emt 0:02:40] [#]} 31. Be3 {[%emt 0:01:03]} (31. Qf2 $6 Bxg5 32. g4+ (32. hxg5 Kg6 $11) 32... Kxg4 33. Rd4+ (33. hxg5 Rh8 $11) 33... Kh5 34. hxg5 Rh8 35. Rh4+ (35. Ba3 $2 Kg6 $19) 35... Kg6 36. Rh6+ Rxh6 37. gxh6 Kh7 $11) (31. Rd2 $1 $16) 31... Bxg2 $11 {[%emt 0:04:14]} 32. Rxc7 $40 {[%emt 0:00:45][%mdl 128] White attacks. Really sharp!} Rxc7 {[%emt 0:00:03]} 33. Qg3 {[%emt 0:00:21]} Rc4 $2 {[%emt 0:00:37][%mdl 8192]} 34. Rd4 $2 {[%emt 0:04:23]} ({But not} 34. Qxg2 $2 Rg4 35. Rd2 (35. Qxg4+ $2 fxg4 36. Rd7 Bxg5 $19) 35... Rxg2+ 36. Rxg2 Qd5 $19) (34. Bd4 $18 Bf3 35. Qxf3+ Qxf3 36. Nxf3) 34... Rxd4 $4 {[%mdl 8192] A mistake that costs the game.} (34... Rc3 $1 $11) 35. Bxd4 $18 {[%emt 0:00:01] Threatening mate with Nh7.} Bd5 {[%emt 0:03:39]} (35... Qd5 $18 36. Nxe6 (36. Bxa7 Qxa2 37. Qf2 Bd5 $14) 36... Qxe6) 36. Nh7 {[%emt 0:00:31][%cal Rh7f6] White mates.} Bd2 {[%emt 0:03:48]} 37. Nf6+ {[%emt 0:00:03]} Kh6 {[%emt 0:00:05]} 38. Be3+ {[%emt 0:00:07] Weighted Error Value: White=0.55/Black=0.73} 1-0

[Event "HSK GM Invitational 2022"]
[Site "Hamburg"]
[Date "2022.05.27"]
[Round "9.1"]
[White "Kotronias, Vasilios"]
[Black "Prohaszka, Peter"]
[Result "1/2-1/2"]
[ECO "B12"]
[WhiteElo "2465"]
[BlackElo "2579"]
[Annotator "TA"]
[PlyCount "193"]
[EventDate "2022.05.20"]
[EventType "tourn"]
[EventCountry "GER"]
[SourceTitle "playchess.com"]
[Source "ChessBase"]
[SourceQuality "1"]
[TimeControl "40/5400+30:1800+30"]

{[%evp 9,193,3,12,3,7,2,0,0,19,0,8,0,0,-5,2,0,0,0,0,0,0,0,0,0,0,0,81,36,67,37,34,0,0,-105,-9,-34,-48,-58,-9,-18,-2,-8,0,-12,0,-16,-22,-23,0,0,0,-7,0,0,0,0,0,0,0,0,0,0,0,0,0,0,0,0,0,0,0,0,0,0,0,0,0,0,0,0,0,0,0,0,0,0,0,-6,-8,-8,0,0,0,0,0,0,0,0,0,0,0,0,0,0,0,0,0,0,0,0,0,0,0,0,0,0,0,0,0,0,0,0,0,0,0,0,0,0,0,0,0,0,0,0,0,0,0,0,0,0,0,0,0,0,0,0,0,0,0,0,0,0,0,0,0,0,0,0,0,0,0,0,0,0,0,0,0,0,0,0,0,0,0,0,0,0,0,0,0,0,0,0,0,0,0,0]} 1. e4 {[%emt 0:01:21]} c6 {[%emt 0:06:00]} 2. d4 {[%emt 0:00:08]} d5 {[%emt 0:00:05]} 3. e5 {[%emt 0:00:05]} Bf5 {[%emt 0:00:01]} 4. h4 {[%emt 0:00:16]} h5 {[%emt 0:00:04]} 5. Bd3 {[%emt 0:00:06]} Bxd3 {[%emt 0:00:02]} 6. Qxd3 {[%emt 0:00:05][%cal Oe5e6] B12: Caro-Kann: Advance Variation.} Qa5+ {[%emt 0:00:02]} 7. Nd2 {[%emt 0:00:08][%cal Oe5e6] Strongly threatening e6!} e6 $1 {[%emt 0:00:06]} 8. Ngf3 {[%emt 0:00:04]} Nh6 {[%emt 0:00:24]} 9. O-O {[%emt 0:00:17]} Nf5 {[%emt 0:00:03]} 10. a4 {[%emt 0:00:52] 10.Nb3 is setting a new trend.} Qa6 {[%emt 0:11:06]} 11. c4 {[%emt 0:00:14]} Be7 {[%emt 0:00:03]} 12. b3 {[%emt 0:00:56]} O-O {[%emt 0:07:02]} 13. Ba3 {[%emt 0:00:10]} Bxa3 {[%emt 0:00:45]} 14. Rxa3 {[%emt 0:00:07]} Qa5 {[%emt 0:00:07] [#]} 15. Rb1 $146 {[%emt 0:02:42]} ({Predecessor:} 15. Rc1 Na6 16. Nf1 Qb4 17. Raa1 Qe7 18. Ng3 Nxh4 19. Nxh5 Nb4 20. Qc3 Nxf3+ 21. Qxf3 {½-½ (31) Baron,T (2531)-Bluebaum,M (2643) Douglas 2019}) 15... Qb4 {[%emt 0:09:14]} 16. Raa1 {[%emt 0:00:06]} Rd8 $1 {[%emt 0:18:27]} 17. Nf1 {[%emt 0:09:21]} c5 {[%emt 0:10:58]} (17... Qe7 $1 $11) 18. cxd5 {[%emt 0:11:06]} (18. Ne3 {with more complications.} Nxd4 19. Ng5 g6 20. cxd5 Kg7 21. d6) 18... Nxd4 {[%emt 0:08:09]} 19. Nxd4 {[%emt 0:03:36]} (19. Ng5 {looks sharper.} Nf5 20. Ne3 Qxh4 21. Nxf7 Nxe3 22. fxe3 Rxd5 23. Qg6) 19... Qxd4 {[%emt 0:06:32]} ({Resist} 19... Rxd5 {[#]} 20. Qb5 $1 Rxd4 21. Qe8+ Kh7 22. Qxf7 $16) 20. Qb5 {[%emt 0:10:32]} a6 {[%emt 0:03:46]} (20... Qxd5 $2 21. Rd1 $18) 21. Qe2 {[%emt 0:06:20]} (21. Qxb7 $11 {remains equal.} Qxd5 22. Qxd5 Rxd5 23. Rd1) 21... Qxh4 {[%emt 0:01:56]} (21... Rxd5 $17 22. Rd1 Qxh4 23. Rxd5 exd5) 22. dxe6 {[%emt 0:24:49]} fxe6 {[%emt 0:00:02]} 23. Rc1 {[%emt 0:00:34]} Nc6 {[%emt 0:05:14]} (23... Rd5 $1 $15 24. Rc4 Qg5) 24. Rxc5 $11 {[%emt 0:00:09]} Rd4 {[%emt 0:00:31]} 25. Ng3 {[%emt 0:08:02]} Rg4 {[%emt 0:04:29] [#] And now ...Rxg3 would win.} 26. Rd1 {[%emt 0:02:26]} Rf8 {[%emt 0:01:12]} 27. Rc4 {[%emt 0:03:31]} Rxc4 {[%emt 0:02:05]} 28. bxc4 {[%emt 0:02:19]} Qg4 {[%emt 0:00:15]} (28... Rf4 {keeps more tension.} 29. Rd7 Rxc4 30. Rxb7 Rc1+) 29. Qxg4 {[%emt 0:05:30] The position is equal.} hxg4 {[%emt 0:00:01][%mdl 4096] Endgame KRN-KRN} 30. Re1 {[%emt 0:01:19]} Rf4 {[%emt 0:02:33]} 31. Ne4 $1 {[%emt 0:00:17]} Nxe5 {[%emt 0:01:16]} 32. Nc5 {[%emt 0:01:24][%csl LRb7,LRe5,LRe6] Against Nd3} Nf7 {[%emt 0:01:16]} 33. Rxe6 {[%emt 0:01:56]} Rxc4 {[%emt 0:00:29]} 34. Nxb7 {[%emt 0:00:04]} Rxa4 {[%emt 0:00:30]} 35. Nc5 {[%emt 0:00:24][%csl LRa4,LRa6]} Ra1+ {[%emt 0:00:17]} 36. Kh2 {[%emt 0:00:05]} a5 {[%emt 0:00:19]} 37. Ra6 {[%emt 0:00:22]} Ra2 {[%emt 0:00:39]} 38. Ra7 {[%emt 0:03:09]} Nh6 {[%emt 0:00:56]} 39. Ne6 {[%emt 0:00:09]} Nf5 {[%emt 0:02:20]} 40. Ng5 {[%emt 0:00:06][%cal Ra7a8]} g6 {[%emt 0:00:25]} 41. Ne4 {[%emt 0:30:40]} Kf8 {[%emt 0:30:26]} 42. Nf6 {[%emt 0:00:00]} Rxf2 {[%emt 0:00:00] Hoping for ...g3+.} 43. Nxg4 {[%emt 0:00:00]} Ra2 {[%emt 0:00:00]} 44. Ne5 {[%emt 0:00:00]} Nh4 {[%emt 0:00:00]} 45. Kh3 {[%emt 0:00:00]} Nxg2 {[%emt 0:00:00]} 46. Nxg6+ {[%emt 0:00:00]} Ke8 {[%emt 0:00:00]} 47. Re7+ {[%emt 0:00:00]} Kd8 {[%emt 0:00:00][%cal Og2f4] Threatens to win with ...Nf4+!} 48. Re4 {[%emt 0:00:00] Inhibits Nf4+.} Kc7 {[%emt 0:00:00]} 49. Ne5 {[%emt 0:00:00]} a4 {[%emt 0:00:00]} 50. Rxa4 {[%emt 0:00:00]} Rxa4 {[%emt 0:00:00]} 51. Kxg2 {[%emt 0:00:00] KR-KN} Kd6 {[%emt 0:00:00]} 52. Nf3 {[%emt 0:00:00]} Kd5 {[%emt 0:00:00]} 53. Kg3 {[%emt 0:00:00]} Ke4 {[%emt 0:00:00]} 54. Ng5+ {[%emt 0:00:00]} Ke3 {[%emt 0:00:00]} 55. Nh3 {[%emt 0:00:00]} Ra1 {[%emt 0:00:00]} 56. Kg4 {[%emt 0:00:00]} Rf1 {[%emt 0:00:00]} 57. Ng5 {[%emt 0:00:00]} Kd4 {[%emt 0:00:00]} 58. Nf3+ {[%emt 0:00:00]} Ke3 {[%emt 0:00:00]} 59. Ng5 {[%emt 0:00:00]} Rf4+ {[%emt 0:00:00]} 60. Kh5 {[%emt 0:00:00]} Ra4 {[%emt 0:00:00]} 61. Kg6 {[%emt 0:00:00]} Kf4 {[%emt 0:00:00]} 62. Nf7 {[%emt 0:00:00]} Ra6+ {[%emt 0:00:00]} 63. Kg7 {[%emt 0:00:00]} Kg4 {[%emt 0:00:00]} 64. Nh6+ {[%emt 0:00:00]} Kg5 {[%emt 0:00:00]} 65. Nf7+ {[%emt 0:00:00]} Kf5 {[%emt 0:00:00]} 66. Nh6+ {[%emt 0:00:00]} Ke5 {[%emt 0:00:00]} 67. Ng4+ {[%emt 0:00:00]} Kf4 {[%emt 0:00:00]} 68. Nh6 {[%emt 0:00:00]} Rb6 {[%emt 0:00:00]} 69. Nf7 {[%emt 0:00:00]} Re6 {[%emt 0:00:04]} 70. Nh6 {[%emt 0:00:00]} Ke5 {[%emt 0:01:59]} 71. Nf7+ {[%emt 0:00:30]} Kd5 {[%emt 0:00:02]} 72. Ng5 {[%emt 0:02:46]} Rb6 {[%emt 0:00:20]} 73. Nf7 {[%emt 0:02:54]} Ra6 {[%emt 0:00:48]} 74. Ng5 {[%emt 0:00:44]} Ke5 {[%emt 0:00:05]} 75. Nf7+ {[%emt 0:01:25]} Ke6 {[%emt 0:00:10]} 76. Kg6 {[%emt 0:02:01]} Ke7+ {[%emt 0:00:33]} 77. Kg7 {[%emt 0:00:05]} Re6 {[%emt 0:01:07]} 78. Ng5 {[%emt 0:00:43]} Rf6 {[%emt 0:00:09]} 79. Ne4 {[%emt 0:01:05]} Rf5 {[%emt 0:03:37]} 80. Kg6 {[%emt 0:00:11]} Ke6 {[%emt 0:00:09]} 81. Ng5+ {[%emt 0:00:12]} Ke5 {[%emt 0:00:01]} 82. Nf7+ {[%emt 0:00:44]} Kf4 {[%emt 0:00:06]} 83. Nd6 {[%emt 0:01:16]} Rf8 {[%emt 0:01:50]} 84. Nf7 {[%emt 0:00:19]} Ra8 {[%emt 0:00:20]} 85. Kf6 {[%emt 0:00:20]} Ra6+ {[%emt 0:00:07]} 86. Kg7 {[%emt 0:00:55]} Ke4 {[%emt 0:02:03]} 87. Nh6 {[%emt 0:01:25]} Ke5 {[%emt 0:00:48]} 88. Nf7+ {[%emt 0:00:49]} Ke6 {[%emt 0:00:07]} 89. Kg6 {[%emt 0:00:15]} Ke7+ {[%emt 0:00:20]} 90. Kg7 {[%emt 0:00:04]} Ra8 {[%emt 0:02:36]} 91. Ng5 {[%emt 0:00:23]} Rf8 {[%emt 0:00:33]} 92. Kg6 {[%emt 0:00:39]} Rf6+ {[%emt 0:01:48]} 93. Kh5 {[%emt 0:01:16]} Rf5 {[%emt 0:00:13] ( -> ...Kf6)} 94. Kg4 {[%emt 0:00:09]} Kf6 {[%emt 0:00:04]} 95. Nf3 {[%emt 0:00:11]} Rxf3 {[%emt 0:01:07]} 96. Kxf3 {[%emt 0:11:22]} Ke5 97. Kg3 {Weighted Error Value: White=0.08 (flawless) /Black=0.09 (flawless)} 1/2-1/2